Workbook

Sheet 封面
A1: 盐边县共和乡人民政府
A2: 2023年部门预算
A3: 2023年 3 月 16 日

Sheet 1部门收支总表
E1: 表1
B2: 部门收支总表
B3: 部门：盐边县共和乡人民政府 | E3: 金额单位：元
B4: 收 入 | D4: 支 出
B5: 项 目 | C5: 预算数 | D5: 项 目 | E5: 预算数
B6: 一、一般公共预算拨款收入 | C6: 13,464,605.98 | D6: 一、一般公共服务支出 | E6: 4,359,503.80
B7: 二、政府性基金预算拨款收入 | D7: 二、外交支出
B8: 三、国有资本经营预算拨款收入 | D8: 三、国防支出
B9: 四、事业收入 | D9: 四、公共安全支出
B10: 五、事业单位经营收入 | D10: 五、教育支出
B11: 六、其他收入 | D11: 六、科学技术支出
D12: 七、文化旅游体育与传媒支出 | E12: 702,905.68
D13: 八、社会保障和就业支出 | E13: 2,425,141.27
D14: 九、社会保险基金支出
D15: 十、卫生健康支出 | E15: 777,917.54
D16: 十一、节能环保支出
D17: 十二、城乡社区支出
D18: 十三、农林水支出 | E18: 4,472,022.70
D19: 十四、交通运输支出
D20: 十五、资源勘探工业信息等支出
D21: 十六、商业服务业等支出
D22: 十七、金融支出
D23: 十八、援助其他地区支出
D24: 十九、自然资源海洋气象等支出
D25: 二十、住房保障支出 | E25: 727,114.99
D26: 二十一、粮油物资储备支出
D27: 二十二、国有资本经营预算支出
D28: 二十三、灾害防治及应急管理支出
D29: 二十四、预备费
D30: 二十五、其他支出
D31: 二十六、转移性支出
D32: 二十七、债务还本支出
D33: 二十八、债务付息支出
D34: 二十九、债务发行费用支出
D35: 三十、抗疫特别国债安排的支出
B36: 本 年 收 入 合 计 | D36: 本 年 支 出 合 计
B37: 七、用事业基金弥补收支差额 | D37: 三十一、事业单位结余分配
B38: 八、上年结转 | D38: 其中：转入事业基金
D39: 三十二、结转下年
B40: 收 入 总 计 | C40: 13,464,605.98 | D40: 支 出 总 计 | E40: =SUM(E6:E39) -> 13,464,605.98

Sheet 1-1部门收入总表
N1: 表1-1
B2: 部门收入总表
B3: 部门：盐边县共和乡人民政府 | N3: 金额单位：元
B4: 项 目 | D4: 合计 | E4: 上年结转 | F4: 一般公共预算拨款收入 | G4: 政府性基金预算拨款收入 | H4: 国有资本经营预算拨款收入 | I4: 事业收入 | J4: 事业单位经营收入 | K4: 其他收入 | L4: 上级补助收入 | M4: 附属单位上缴收入 | N4: 用事业基金弥补收支差额
B5: 单位代码 | C5: 单位名称（科目）
C7: 合 计
B8: 800027 | C8: 盐边县共和乡人民政府 | D8: 13,464,605.98 | E8: 13,464,605.98 | F8: 13,464,605.98

Sheet 1-2部门支出总表
K1: 表1-2
B2: 部门支出总表
B3: 部门：盐边县共和乡人民政府 | K3: 金额单位：元
B4: 项 目 | G4: 合计 | H4: 基本支出 | I4: 项目支出 | J4: 上缴上级支出 | K4: 对附属单位补助支出
B5: 科目编码 | E5: 单位代码 | F5: 单位名称（科目）
B6: 类 | C6: 款 | D6: 项
F7: 合 计
E8: 800027 | F8: 共和乡人民政府 | G8: 13,464,605.98 | H8: 11,243,172.98 | I8: =G8-H8 -> 2,221,433.00
B9: 201 | E9: 800027 | F9: 一般公共服务支出 | G9: 4,359,503.80 | H9: 4,252,172.80 | I9: 107,331.00
C10: 01 | E10: 800027 | F10: 人大事务 | G10: 194,692.82 | H10: 161,542.82 | I10: 33,150.00
D11: 01 | E11: 800027 | F11: 行政运行 | G11: 161,542.82 | H11: 161,542.82
D12: 04 | E12: 800027 | F12: 人大会议 | G12: 33,150.00 | I12: 33,150.00
C13: 03 | E13: 800027 | F13: 政府办公厅（室）及相关机构事务 | G13: 4,007,782.74 | H13: 3,945,612.74 | I13: 62,170.00
D14: 01 | E14: 800027 | F14: 行政运行 | G14: 3,254,082.74 | H14: 3,254,082.74
D15: 02 | E15: 800027 | F15: 一般行政管理事务 | G15: 62,170.00 | I15: 62,170.00
D16: 50 | E16: 800027 | F16: 事业运行 | G16: 691,530.00 | H16: 691,530.00
C17: 11 | E17: 800027 | F17: 纪检监察事务 | G17: 6,076.00 | I17: 6,076.00
D18: 99 | E18: 800027 | F18: 其他纪检监察事务支出 | G18: 6,076.00 | I18: 6,076.00
C19: 23 | E19: 800027 | F19: 民族事务 | G19: 5,935.00 | I19: 5,935.00
D20: 01 | E20: 800027 | F20: 民族工作专项 | G20: 5,935.00 | I20: 5,935.00
C21: 31 | E21: 800027 | F21: 党委办公厅（室）及相关机构事务 | G21: 145,017.24 | H21: 145,017.24
D22: 01 | E22: 800027 | F22: 行政运行 | G22: 145,017.24 | H22: 145,017.24
B23: 207 | E23: 800027 | F23: 文化旅游体育与传媒支出 | G23: 702,905.68 | H23: 672,905.68 | I23: 30,000.00
C24: 01 | E24: 800027 | F24: 文化和旅游 | G24: 702,905.68 | H24: 672,905.68 | I24: 30,000.00
D25: 09 | E25: 800027 | F25: 群众文化 | G25: 672,905.68 | H25: 672,905.68
D26: 99 | E26: 800027 | F26: 其他文化和旅游支出 | G26: 30,000.00 | I26: 30,000.00
B27: 208 | E27: 800027 | F27: 社会保障和就业支出 | G27: 2,425,141.27 | H27: 1,918,864.27 | I27: 506,277.00
C28: 01 | E28: 800027 | F28: 人力资源和社会保障管理事务 | G28: 983,960.61 | H28: 983,960.61
D29: 09 | E29: 800027 | F29: 社会保险经办机构 | G29: 708,713.49 | H29: 708,713.49
D30: 99 | E30: 800027 | F30: 其他人力资源和社会保障管理事务支出 | G30: 275,247.12 | H30: 275,247.12
C31: 02 | E31: 800027 | F31: 民政管理事务 | G31: 249,277.00 | I31: 249,277.00
D32: 08 | E32: 800027 | F32: 基层政权建设和社区治理 | G32: 30,000.00 | I32: 30,000.00
D33: 99 | E33: 800027 | F33: 其他民政管理事务支出 | G33: 219,277.00 | I33: 219,277.00
C34: 05 | E34: 800027 | F34: 行政事业单位养老支出 | G34: 934,903.66 | H34: 934,903.66
D35: 01 | E35: 800027 | F35: 行政单位离退休 | G35: 65,499.52 | H35: 65,499.52
D36: 02 | E36: 800027 | F36: 事业单位离退休 | G36: 36,562.95 | H36: 36,562.95
D37: 05 | E37: 800027 | F37: 机关事业单位基本养老保险缴费支出 | G37: 832,841.19 | H37: 832,841.19
C38: 21 | E38: 800027 | F38: 特困人员救助供养 | G38: 257,000.00 | I38: 257,000.00
D39: 02 | E39: 800027 | F39: 农村特困人员救助供养支出 | G39: 257,000.00 | I39: 257,000.00
B40: 210 | E40: 800027 | F40: 卫生健康支出 | G40: 777,917.54 | H40: 747,492.54 | I40: 30,425.00
C41: 04 | E41: 800027 | F41: 公共卫生 | G41: 30,425.00 | I41: 30,425.00
D42: 99 | E42: 800027 | F42: 其他公共卫生支出 | G42: 30,425.00 | I42: 30,425.00
C43: 11 | E43: 800027 | F43: 行政事业单位医疗 | G43: 747,492.54 | H43: 747,492.54
D44: 01 | E44: 800027 | F44: 行政单位医疗 | G44: 221,912.04 | H44: 221,912.04
D45: 02 | E45: 800027 | F45: 事业单位医疗 | G45: 252,954.47 | H45: 252,954.47
D46: 03 | E46: 800027 | F46: 公务员医疗补助 | G46: 17,600.00 | H46: 17,600.00
D47: 99 | E47: 800027 | F47: 其他行政事业单位医疗支出 | G47: 255,026.03 | H47: 255,026.03
B48: 213 | E48: 800027 | F48: 农林水支出 | G48: 4,472,022.70 | H48: 2,924,622.70 | I48: 1,547,400.00
C49: 01 | E49: 800027 | F49: 农业农村 | G49: 979,642.70 | H49: 979,642.70
D50: 04 | E50: 800027 | F50: 事业运行 | G50: 979,642.70 | H50: 979,642.70
C51: 02 | E51: 800027 | F51: 林业和草原 | G51: 180,000.00 | I51: 180,000.00
D52: 34 | E52: 800027 | F52: 林业草原防灾减灾 | G52: 180,000.00 | I52: 180,000.00
C53: 07 | E53: 800027 | F53: 农村综合改革 | G53: 2,904,980.00 | H53: 1,944,980.00 | I53: 960,000.00
D54: 05 | E54: 800027 | F54: 对村民委员会和村党支部的补助 | G54: 2,904,980.00 | H54: 1,944,980.00 | I54: 960,000.00
C55: 99 | E55: 800027 | F55: 其他农林水支出 | G55: 407,400.00 | I55: 407,400.00
D56: 99 | E56: 800027 | F56: 其他农林水支出 | G56: 407,400.00 | I56: 407,400.00
B57: 221 | E57: 800027 | F57: 住房保障支出 | G57: 727,114.99 | H57: 727,114.99
C58: 02 | E58: 800027 | F58: 住房改革支出 | G58: 727,114.99 | H58: 727,114.99
D59: 01 | E59: 800027 | F59: 住房公积金 | G59: 727,114.99 | H59: 727,114.99

Sheet 2财政拨款收支预算总表
I1: 表2
B2: 财政拨款收支预算总表
B3: 部门：盐边县共和乡人民政府 | I3: 金额单位：元
B4: 收 入 | D4: 支 出
B5: 项 目 | C5: 预算数 | D5: 项 目 | E5: 合计 | F5: 一般公共预算 | G5: 政府性基金预算 | H5: 国有资本经营预算 | I5: 上年财政拨款资金结转
B6: 一、本年收入 | C6: 13,464,605.98 | D6: 一、本年支出 | E6: 13,464,605.98 | F6: 13,464,605.98
B7: 一般公共预算拨款收入 | D7: 一般公共服务支出 | E7: 4,359,503.80 | F7: 4,359,503.80
B8: 政府性基金预算拨款收入 | D8: 外交支出
B9: 国有资本经营预算拨款收入 | D9: 国防支出
B10: 二、上年结转 | D10: 公共安全支出
B11: 一般公共预算拨款收入 | D11: 教育支出
B12: 政府性基金预算拨款收入 | D12: 科学技术支出
B13: 国有资本经营预算拨款收入 | D13: 文化旅游体育与传媒支出 | E13: 702,905.68 | F13: 702,905.68
D14: 社会保障和就业支出 | E14: 2,425,141.27 | F14: 2,425,141.27
D15: 社会保险基金支出
D16: 卫生健康支出 | E16: 777,917.54 | F16: 777,917.54
D17: 节能环保支出
D18: 城乡社区支出
D19: 农林水支出 | E19: 4,472,022.70 | F19: 4,472,022.70
D20: 交通运输支出
D21: 资源勘探工业信息等支出
D22: 商业服务业等支出
D23: 金融支出
D24: 援助其他地区支出
D25: 自然资源海洋气象等支出
D26: 住房保障支出 | E26: 727,114.99 | F26: 727,114.99
D27: 粮油物资储备支出
D28: 国有资本经营预算支出
D29: 灾害防治及应急管理支出
D30: 其他支出
D31: 债务付息支出
D32: 债务发行费用支出
D33: 抗疫特别国债安排的支出

Sheet 2-1财政拨款支出预算表（政府经济分类科目）
AP1: 表2-1
B2: 财政拨款支出预算表（政府经济分类科目）
B3: 部门：盐边县共和乡人民政府 | AO3: 金额单位：元
B4: 项 目 | F4: 总计 | G4: 县级当年财政拨款安排 | Q4: 上级提前通知专项转移支付等 | AA4: 上年结转安排
B5: 科目编码 | D5: 单位代码 | E5: 单位名称（科目） | G5: 合计 | H5: 一般公共预算拨款 | K5: 政府性基金安排 | N5: 国有资本经营预算安排 | Q5: 合计 | R5: 一般公共预算拨款 | U5: 政府性基金安排 | X5: 国有资本经营预算安排 | AA5: 合计 | AB5: 一般公共预算拨款 | AE5: 政府性基金安排 | AH5: 国有资本经营预算安排 | AK5: 上年应返还额度结转 | AN5: 上年财政拨款资金结转
B6: 类 | C6: 款 | H6: 小计 | I6: 基本支出 | J6: 项目支出 | K6: 小计 | L6: 基本支出 | M6: 项目支出 | N6: 小计 | O6: 基本支出 | P6: 项目支出 | R6: 小计 | S6: 基本支出 | T6: 项目支出 | U6: 小计 | V6: 基本支出 | W6: 项目支出 | X6: 小计 | Y6: 基本支出 | Z6: 项目支出 | AB6: 小计 | AC6: 基本支出 | AD6: 项目支出 | AE6: 小计 | AF6: 基本支出 | AG6: 项目支出 | AH6: 小计 | AI6: 基本支出 | AJ6: 项目支出 | AK6: 小计 | AL6: 基本支出 | AM6: 项目支出 | AN6: 小计 | AO6: 基本支出 | AP6: 项目支出
E7: 合 计 | F7: =G7 -> 13,464,605.98 | G7: =H7 -> 13,464,605.98 | H7: =H8+H20+H36+H39 -> 13,464,605.98 | I7: =I8+I20+I36+I39 -> 11,243,172.98 | J7: =J8+J20+J36+J39 -> 2,221,433.00
B8: 301 | D8: 800027 | F8: =G8 -> 8,193,901.22 | G8: =H8 -> 8,193,901.22 | H8: =I8+J8 -> 8,193,901.22 | I8: 8,193,901.22
C9: 01 | D9: 800027 | E9: 基本工资 | F9: 1,803,072.00 | G9: 1,803,072.00 | H9: =I9+J9 -> 1,803,072.00 | I9: 1,803,072.00
C10: 02 | D10: 800027 | E10: 津贴补贴 | F10: 1,170,600.00 | G10: 1,170,600.00 | H10: 1,170,600.00 | I10: 1,170,600.00
C11: 03 | D11: 800027 | E11: 奖金 | F11: 821,774.00 | G11: 821,774.00 | H11: 821,774.00 | I11: 821,774.00
C12: 07 | D12: 800027 | E12: 绩效工资 | F12: 1,645,491.43 | G12: 1,645,491.43 | H12: 1,645,491.43 | I12: 1,645,491.43
C13: 08 | D13: 800027 | E13: 机关事业单位基本养老保险缴费 | F13: 832,841.19 | G13: 832,841.19 | H13: 832,841.19 | I13: 832,841.19
C14: 10 | D14: 800027 | E14: 职工基本医疗保险缴费 | F14: 474,866.51 | G14: 474,866.51 | H14: 474,866.51 | I14: 474,866.51
C15: 11 | D15: 800027 | E15: 公务员医疗补助缴费 | F15: 253,426.03 | G15: 253,426.03 | H15: 253,426.03 | I15: 253,426.03
C16: 12 | D16: 800027 | E16: 其他社会保障缴费 | F16: 34,275.07 | G16: 34,275.07 | H16: 34,275.07 | I16: 34,275.07
C17: 13 | D17: 800027 | E17: 住房公积金 | F17: 727,114.99 | G17: 727,114.99 | H17: 727,114.99 | I17: 727,114.99
C18: 14 | D18: 800027 | E18: 医疗费 | F18: 19,200.00 | G18: 19,200.00 | H18: 19,200.00 | I18: 19,200.00
C19: 99 | D19: 800027 | E19: 其他工资福利支出 | F19: 411,240.00 | G19: 411,240.00 | H19: 411,240.00 | I19: 411,240.00
B20: 302 | D20: 800027 | F20: 2,875,719.29 | G20: 2,875,719.29 | H20: =SUM(H21:H35) -> 2,875,719.29 | I20: =SUM(I21:I35) -> 1,172,563.29 | J20: =SUM(J21:J35) -> 1,703,156.00
C21: 01 | D21: 800027 | E21: 办公费 | F21: 411,000.00 | G21: 411,000.00 | H21: 411,000.00 | I21: 398,000.00 | J21: =H21-I21 -> 13,000.00
C22: 03 | D22: 800027 | E22: 咨询费 | F22: 20,010.00 | G22: 20,010.00 | H22: =I22+J22 -> 20,010.00 | I22: 20,010.00
C23: 05 | D23: 800027 | E23: 水费 | F23: 18,400.00 | G23: 18,400.00 | H23: =I23+J23 -> 18,400.00 | I23: 18,400.00
C24: 06 | D24: 800027 | E24: 电费 | F24: 27,600.00 | G24: 27,600.00 | H24: 27,600.00 | I24: 27,600.00
C25: 07 | D25: 800027 | E25: 邮电费 | F25: 18,400.00 | G25: 18,400.00 | H25: 18,400.00 | I25: 18,400.00
C26: 11 | D26: 800027 | E26: 差旅费 | F26: 138,000.00 | G26: 138,000.00 | H26: 138,000.00 | I26: 138,000.00
C27: 13 | D27: 800027 | E27: 维修（护）费 | F27: 29,260.00 | G27: 29,260.00 | H27: 29,260.00 | I27: 29,260.00
C28: 15 | D28: 800027 | E28: 会议费 | F28: 43,580.00 | G28: 43,580.00 | H28: 43,580.00 | I28: 10,430.00 | J28: =H28-I28 -> 33,150.00
C29: 17 | D29: 800027 | E29: 公务接待费 | F29: 5,900.00 | G29: 5,900.00 | H29: 5,900.00 | I29: 5,900.00
C30: 26 | D30: 800027 | E30: 劳务费 | F30: 55,200.00 | G30: 55,200.00 | H30: 55,200.00 | I30: 55,200.00
C31: 28 | D31: 800027 | E31: 工会经费 | F31: 107,532.09 | G31: 107,532.09 | H31: 107,532.09 | I31: 107,532.09
C32: 29 | D32: 800027 | E32: 福利费 | F32: 50,731.20 | G32: 50,731.20 | H32: 50,731.20 | I32: 50,731.20
C33: 31 | D33: 800027 | E33: 公务用车运行维护费 | F33: 44,500.00 | G33: 44,500.00 | H33: 44,500.00 | I33: 44,500.00
C34: 39 | D34: 800027 | E34: 其他交通费用 | F34: 229,600.00 | G34: 229,600.00 | H34: 229,600.00 | I34: 229,600.00
C35: 99 | D35: 800027 | E35: 其他商品和服务支出 | F35: 1,676,006.00 | G35: 1,676,006.00 | H35: 1,676,006.00 | I35: 19,000.00 | J35: =H35-I35 -> 1,657,006.00
B36: 303 | D36: 800027 | F36: 2,339,985.47 | G36: 2,339,985.47 | H36: =H37+H38 -> 2,339,985.47 | I36: =I37+I38 -> 1,876,708.47 | J36: =J37+J38 -> 463,277.00
C37: 05 | D37: 800027 | E37: 生活补助 | F37: 2,258,087.00 | G37: 2,258,087.00 | H37: 2,258,087.00 | I37: 1,794,810.00 | J37: =H37-I37 -> 463,277.00
C38: 07 | D38: 800027 | E38: 医疗费补助 | F38: 81,898.47 | G38: 81,898.47 | H38: =I38+J38 -> 81,898.47 | I38: 81,898.47
B39: 399 | D39: 800027 | F39: 55,000.00 | G39: 55,000.00 | H39: =I39+J39 -> 55,000.00 | J39: 55,000.00
C40: 99 | D40: 800027 | E40: 其他支出 | F40: 55,000.00 | G40: 55,000.00 | H40: =I40+J40 -> 55,000.00 | J40: 55,000.00

Sheet 3一般公共预算支出预算表
G1: 表3
B2: 一般公共预算支出预算表
B3: 部门： 盐边县共和乡人民政府 | I3: 金额单位：元
B4: 项 目 | G4: 合计 | H4: 当年财政拨款安排 | I4: 上年结转安排
B5: 科目编码 | E5: 单位代码 | F5: 单位名称（科目）
B6: 类 | C6: 款 | D6: 项
E7: 800027 | F7: 合 计 | G7: 13,464,605.98 | H7: 13,464,605.98
B8: 201 | E8: 800027 | F8: 一般公共服务支出 | G8: 4,359,503.80 | H8: 4,359,503.80
C9: 01 | E9: 800027 | F9: 人大事务 | G9: 194,692.82 | H9: 194,692.82
D10: 01 | E10: 800027 | F10: 行政运行 | G10: 161,542.82 | H10: 161,542.82
D11: 04 | E11: 800027 | F11: 人大会议 | G11: 33,150.00 | H11: 33,150.00
C12: 03 | E12: 800027 | F12: 政府办公厅（室）及相关机构事务 | G12: 4,007,782.74 | H12: 4,007,782.74
D13: 01 | E13: 800027 | F13: 行政运行 | G13: 3,254,082.74 | H13: 3,254,082.74
D14: 02 | E14: 800027 | F14: 一般行政管理事务 | G14: 62,170.00 | H14: 62,170.00
D15: 50 | E15: 800027 | F15: 事业运行 | G15: 691,530.00 | H15: 691,530.00
C16: 11 | E16: 800027 | F16: 纪检监察事务 | G16: 6,076.00 | H16: 6,076.00
D17: 99 | E17: 800027 | F17: 其他纪检监察事务支出 | G17: 6,076.00 | H17: 6,076.00
C18: 23 | E18: 800027 | F18: 民族事务 | G18: 5,935.00 | H18: 5,935.00
D19: 01 | E19: 800027 | F19: 民族工作专项 | G19: 5,935.00 | H19: 5,935.00
C20: 31 | E20: 800027 | F20: 党委办公厅（室）及相关机构事务 | G20: 145,017.24 | H20: 145,017.24
D21: 01 | E21: 800027 | F21: 行政运行 | G21: 145,017.24 | H21: 145,017.24
B22: 207 | E22: 800027 | F22: 文化旅游体育与传媒支出 | G22: 702,905.68 | H22: 702,905.68
C23: 01 | E23: 800027 | F23: 文化和旅游 | G23: 702,905.68 | H23: 702,905.68
D24: 09 | E24: 800027 | F24: 群众文化 | G24: 672,905.68 | H24: 672,905.68
D25: 99 | E25: 800027 | F25: 其他文化和旅游支出 | G25: 30,000.00 | H25: 30,000.00
B26: 208 | E26: 800027 | F26: 社会保障和就业支出 | G26: 2,425,141.27 | H26: 2,425,141.27
C27: 01 | E27: 800027 | F27: 人力资源和社会保障管理事务 | G27: 983,960.61 | H27: 983,960.61
D28: 09 | E28: 800027 | F28: 社会保险经办机构 | G28: 708,713.49 | H28: 708,713.49
D29: 99 | E29: 800027 | F29: 其他人力资源和社会保障管理事务支出 | G29: 275,247.12 | H29: 275,247.12
C30: 02 | E30: 800027 | F30: 民政管理事务 | G30: 249,277.00 | H30: 249,277.00
D31: 08 | E31: 800027 | F31: 基层政权建设和社区治理 | G31: 30,000.00 | H31: 30,000.00
D32: 99 | E32: 800027 | F32: 其他民政管理事务支出 | G32: 219,277.00 | H32: 219,277.00
C33: 05 | E33: 800027 | F33: 行政事业单位养老支出 | G33: 934,903.66 | H33: 934,903.66
D34: 01 | E34: 800027 | F34: 行政单位离退休 | G34: 65,499.52 | H34: 65,499.52
D35: 02 | E35: 800027 | F35: 事业单位离退休 | G35: 36,562.95 | H35: 36,562.95
D36: 05 | E36: 800027 | F36: 机关事业单位基本养老保险缴费支出 | G36: 832,841.19 | H36: 832,841.19
C37: 21 | E37: 800027 | F37: 特困人员救助供养 | G37: 257,000.00 | H37: 257,000.00
D38: 02 | E38: 800027 | F38: 农村特困人员救助供养支出 | G38: 257,000.00 | H38: 257,000.00
B39: 210 | E39: 800027 | F39: 卫生健康支出 | G39: 777,917.54 | H39: 777,917.54
C40: 04 | E40: 800027 | F40: 公共卫生 | G40: 30,425.00 | H40: 30,425.00
D41: 99 | E41: 800027 | F41: 其他公共卫生支出 | G41: 30,425.00 | H41: 30,425.00
C42: 11 | E42: 800027 | F42: 行政事业单位医疗 | G42: 747,492.54 | H42: 747,492.54
D43: 01 | E43: 800027 | F43: 行政单位医疗 | G43: 221,912.04 | H43: 221,912.04
D44: 02 | E44: 800027 | F44: 事业单位医疗 | G44: 252,954.47 | H44: 252,954.47
D45: 03 | E45: 800027 | F45: 公务员医疗补助 | G45: 17,600.00 | H45: 17,600.00
D46: 99 | E46: 800027 | F46: 其他行政事业单位医疗支出 | G46: 255,026.03 | H46: 255,026.03
B47: 213 | E47: 800027 | F47: 农林水支出 | G47: 4,472,022.70 | H47: 4,472,022.70
C48: 01 | E48: 800027 | F48: 农业农村 | G48: 979,642.70 | H48: 979,642.70
D49: 04 | E49: 800027 | F49: 事业运行 | G49: 979,642.70 | H49: 979,642.70
C50: 02 | E50: 800027 | F50: 林业和草原 | G50: 180,000.00 | H50: 180,000.00
D51: 34 | E51: 800027 | F51: 林业草原防灾减灾 | G51: 180,000.00 | H51: 180,000.00
C52: 07 | E52: 800027 | F52: 农村综合改革 | G52: 2,904,980.00 | H52: 2,904,980.00
D53: 05 | E53: 800027 | F53: 对村民委员会和村党支部的补助 | G53: 2,904,980.00 | H53: 2,904,980.00
C54: 99 | E54: 800027 | F54: 其他农林水支出 | G54: 407,400.00 | H54: 407,400.00
D55: 99 | E55: 800027 | F55: 其他农林水支出 | G55: 407,400.00 | H55: 407,400.00
B56: 221 | E56: 800027 | F56: 住房保障支出 | G56: 727,114.99 | H56: 727,114.99
C57: 02 | E57: 800027 | F57: 住房改革支出 | G57: 727,114.99 | H57: 727,114.99
D58: 01 | E58: 800027 | F58: 住房公积金 | G58: 727,114.99 | H58: 727,114.99

Sheet 3-1一般公共预算基本支出预算表
H1: 表3-1
B2: 一般公共预算基本支出预算表
B3: 部门：盐边县共和乡人民政府 | H3: 金额单位：元
B4: 项 目 | F4: 基本支出
B5: 科目编码 | D5: 单位代码 | E5: 单位名称（科目） | F5: 合计 | G5: 人员经费 | H5: 公用经费
B6: 类 | C6: 款
E7: 合 计 | F7: =F8+F20+F36 -> 11,243,172.98 | G7: =G8+G20+G36 -> 10,070,609.69 | H7: =H8+H20+H36 -> 1,172,563.29
B8: 301 | D8: 800027 | F8: 8,193,901.22 | G8: =F8-H8 -> 8,193,901.22
C9: 01 | D9: 800027 | E9: 基本工资 | F9: 1,803,072.00 | G9: =F9-H9 -> 1,803,072.00
C10: 02 | D10: 800027 | E10: 津贴补贴 | F10: 1170600 | G10: 1,170,600.00
C11: 03 | D11: 800027 | E11: 奖金 | F11: 821774 | G11: 821,774.00
C12: 07 | D12: 800027 | E12: 绩效工资 | F12: 1645491.43 | G12: 1,645,491.43
C13: 08 | D13: 800027 | E13: 机关事业单位基本养老保险缴费 | F13: 832841.19 | G13: 832,841.19
C14: 10 | D14: 800027 | E14: 职工基本医疗保险缴费 | F14: 474866.51 | G14: 474,866.51
C15: 11 | D15: 800027 | E15: 公务员医疗补助缴费 | F15: 253426.03 | G15: 253,426.03
C16: 12 | D16: 800027 | E16: 其他社会保障缴费 | F16: 34275.07 | G16: 34,275.07
C17: 13 | D17: 800027 | E17: 住房公积金 | F17: 727114.99 | G17: 727,114.99
C18: 14 | D18: 800027 | E18: 医疗费 | F18: 19200 | G18: 19,200.00
C19: 99 | D19: 800027 | E19: 其他工资福利支出 | F19: 411240 | G19: 411,240.00
B20: 302 | D20: 800027 | F20: 1172563.29 | G20: 0.00 | H20: 1172563.29
C21: 01 | D21: 800027 | E21: 办公费 | F21: 398000 | G21: 0.00 | H21: 398000
C22: 03 | D22: 800027 | E22: 咨询费 | F22: 20010 | G22: 0.00 | H22: 20010
C23: 05 | D23: 800027 | E23: 水费 | F23: 18400 | G23: 0.00 | H23: 18400
C24: 06 | D24: 800027 | E24: 电费 | F24: 27600 | G24: 0.00 | H24: 27600
C25: 07 | D25: 800027 | E25: 邮电费 | F25: 18400 | G25: 0.00 | H25: 18400
C26: 11 | D26: 800027 | E26: 差旅费 | F26: 138000 | G26: 0.00 | H26: 138000
C27: 13 | D27: 800027 | E27: 维修（护）费 | F27: 29260 | G27: 0.00 | H27: 29260
C28: 15 | D28: 800027 | E28: 会议费 | F28: 10430 | G28: 0.00 | H28: 10430
C29: 17 | D29: 800027 | E29: 公务接待费 | F29: 5900 | G29: 0.00 | H29: 5900
C30: 26 | D30: 800027 | E30: 劳务费 | F30: 55200 | G30: 0.00 | H30: 55200
C31: 28 | D31: 800027 | E31: 工会经费 | F31: 107532.09 | G31: 0.00 | H31: 107532.09
C32: 29 | D32: 800027 | E32: 福利费 | F32: 50731.2 | G32: 0.00 | H32: 50731.2
C33: 31 | D33: 800027 | E33: 公务用车运行维护费 | F33: 44500 | G33: 0.00 | H33: 44500
C34: 39 | D34: 800027 | E34: 其他交通费用 | F34: 229600 | G34: 0.00 | H34: 229600
C35: 99 | D35: 800027 | E35: 其他商品和服务支出 | F35: 19000 | G35: 0.00 | H35: 19000
B36: 303 | D36: 800027 | F36: 1876708.47 | G36: 1,876,708.47
C37: 05 | D37: 800027 | E37: 生活补助 | F37: 1794810 | G37: 1,794,810.00
C38: 07 | D38: 800027 | E38: 医疗费补助 | F38: 81898.47 | G38: 81,898.47

Sheet 3-2一般公共预算项目支出预算表
G1: 表3-2
B2: 一般公共预算项目支出预算表
B3: 部门：盐边县共和乡人民政府 | G3: 金额单位：元
B4: 科目编码 | E4: 单位代码 | F4: 单位名称（科目） | G4: 金额
B5: 类 | C5: 款 | D5: 项
F6: 合 计
B7: 201 | C7: 01 | D7: 04 | E7: 800027 | F7: 共和乡2023年乡人大代表活动经费及人代会经费 | G7: 33,150.00
B8: 201 | C8: 03 | D8: 02 | E8: 800027 | F8: 共和乡2023年乡村治理补助 | G8: 12,170.00
B9: 201 | C9: 03 | D9: 02 | E9: 800027 | F9: 根据盐财资行【2022】508号关于下达乡镇便民服务中心“三化”建设经费（共和乡） | G9: 50,000.00
B10: 201 | C10: 11 | D10: 99 | E10: 800027 | F10: 根据盐财资行〔2022〕363号关于下达2022年中央纪检监察转移支付资金 | G10: 6,076.00
B11: 201 | C11: 23 | D11: 04 | E11: 800027 | F11: 共和乡2023年少数民族工作经费补助 | G11: 5,935.00
B12: 207 | C12: 01 | D12: 99 | E12: 800027 | F12: 根据盐财资行【2022】524号下达2022年中央支持地方公共文化服务体系建设补助资金共和乡 | G12: 30,000.00
B13: 208 | C13: 02 | D13: 08 | E13: 800027 | F13: 共和乡2023年社工服务站经费 | G13: 30,000.00
B14: 208 | C14: 21 | D14: 02 | E14: 800027 | F14: 根据行政事业股盐财资行【2022】515号提前下达敬老院管理人员公用经费 | G14: 13,000.00
B15: 208 | C15: 21 | D15: 02 | E15: 800027 | F15: 根据行政事业股盐财资行【2022】515号提前下达敬老院管理人员人员经费 | G15: 206,277.00
B16: 208 | C16: 21 | D16: 02 | E16: 800027 | F16: 根据行政事业股盐财资行【2022】515号提前下达2023年特困人员供养经费 | G16: 257,000.00
B17: 210 | C17: 04 | D17: 99 | E17: 800027 | F17: 共和乡2023年基本公共卫生服务经费 | G17: 30,425.00
B18: 213 | C18: 02 | D18: 34 | E18: 800027 | F18: 盐财资建【2022】226号下达2022年全省村（社区）森林放灭火奖补资金（共和乡） | G18: 180,000.00
B19: 213 | C19: 07 | D19: 05 | E19: 800027 | F19: 根据盐财资预[2022]124号下达2022年市县级基层组织活动和公共服务运行经费共和乡 | G19: 790,000.00
B20: 213 | C20: 07 | D20: 05 | E20: 800027 | F20: 根据盐财资预【2023】5号下达2023年基层组织活动和公共服务运行经费（省县级）共和乡 | G20: 170,000.00
B21: 213 | C21: 39 | D21: 999 | E21: 800027 | F21: 根据盐财资行【2022】125号关于下达2022年省级农村综合改革转移支付资金（省级资金）共和乡 | G21: 407,400.00

Sheet 3-3一般公共预算“三公”经费支出预算表
I1: 表3-3
B2: 一般公共预算“三公”经费支出预算表
B3: 部门：盐边县共和乡人民政府 | I3: 金额单位：元
B4: 单位编码 | C4: 单位名称（科目） | D4: 当年财政拨款预算安排
D5: 合计 | E5: 因公出国（境）费用 | F5: 公务用车购置及运行费 | I5: 公务接待费
F6: 小计 | G6: 公务用车购置费 | H6: 公务用车运行费
C7: 合 计
B8: 800027 | C8: 盐边县共和乡人民政府 | D8: 50,400.00 | F8: =SUM(G8:H8) -> 44,500.00 | H8: 44,500.00 | I8: 5,900.00

Sheet 4政府性基金支出预算表
I1: 表4
B2: 政府性基金支出预算表
B3: 部门： | I3: 金额单位：元
B4: 项 目 | G4: 本年政府性基金预算支出
B5: 科目编码 | E5: 单位代码 | F5: 单位名称（科目） | G5: 合计 | H5: 基本支出 | I5: 项目支出
B6: 类 | C6: 款 | D6: 项
F7: 合 计
E8: 单位编码 | F8: 功能科目名称
F9: 此表无数据

Sheet 4-1政府性基金预算“三公”经费支出预算表
I1: 表4-1
B2: 政府性基金预算“三公”经费支出预算表
B3: 部门： | I3: 金额单位：元
B4: 单位编码 | C4: 单位名称（科目） | D4: 当年财政拨款预算安排
D5: 合计 | E5: 因公出国（境）费用 | F5: 公务用车购置及运行费 | I5: 公务接待费
F6: 小计 | G6: 公务用车购置费 | H6: 公务用车运行费
C7: 合 计 | D7: 此表无数据
C8: 单位名称

Sheet 5国有资本经营预算支出预算表
I1: 表5
B2: 国有资本经营预算支出预算表
B3: 部门： | I3: 金额单位：元
B4: 项 目 | G4: 本年国有资本经营预算支出
B5: 科目编码 | E5: 单位代码 | F5: 单位名称（科目） | G5: 合计 | H5: 基本支出 | I5: 项目支出
B6: 类 | C6: 款 | D6: 项
F7: 合 计
E8: 单位编码 | F8: 功能科目名称
F9: 此表无数据

Sheet 6部门预算项目支出绩效目标表
E1: 表6
A2: 部门预算项目支出绩效目标表
D3: （2023年度）
A4: 项目名称 | D4: 根据行政事业股盐财资行【2022】515号提前下达2023年特困人员供养经费
A5: 预算单位 | D5: 共和乡人民政府
A6: 项目资金(万元) | D6: 年度资金总额： | E6: 25.70
D7: 其中：财政拨款 | E7: 25.70
D8: 其他资金
A9: 总体目标 | B9: 年度目标
B10: 用于支付农村特困人员的生活费、丧葬费、御寒费、照料护理费等。
A11: 绩效指标 | B11: 一级指标 | C11: 二级指标 | D11: 三级指标 | E11: 指标值（包含数字及文字描述）
B12: 产出指标 | C12: 数量指标 | D12: 院民人数 | E12: 26人
C14: 质量指标 | D14: 保障特困人员的日常支出 | E14: ≥95%
C15: 时效指标 | D15: 2023年 | E15: 1年
B16: 效益指标 | C16: 经济效益指标 | D16: 投入成本 | E16: 257000元
C17: 可持续发展指标
B18: 成本指标 | C18: 经济成本指标
C19: 社会成本指标 | D19: 促进社会稳定和谐 | E19: ≥95%
B20: 满意度指标 | C20: 服务对象满意度指标 | D20: 特困人员满意度 | E20: ≥95%
A23: 部门预算项目支出绩效目标表
D24: （2023年度）
A25: 项目名称 | D25: 根据行政事业股盐财资行【2022】515号提前下达敬老院管理人员人员经费
A26: 预算单位 | D26: 共和乡人民政府
A27: 项目资金(万元) | D27: 年度资金总额： | E27: 20.63
D28: 其中：财政拨款 | E28: 20.63
D29: 其他资金
A30: 总体目标 | B30: 年度目标
B31: 用于支付敬老院职工工资、社保。
A32: 绩效指标 | B32: 一级指标 | C32: 二级指标 | D32: 三级指标 | E32: 指标值（包含数字及文字描述）
B33: 产出指标 | C33: 数量指标 | D33: 职工数 | E33: 4人
C35: 质量指标 | D35: 保障敬老院职工工资、社保支出 | E35: ≥95%
C36: 时效指标 | D36: 2023年 | E36: 1年
B37: 效益指标 | C37: 经济效益指标 | D37: 投入成本 | E37: 206277元
C38: 可持续发展指标
B39: 成本指标 | C39: 经济成本指标
C40: 社会成本指标 | D40: 促进社会稳定和谐 | E40: ≥95%
B41: 满意度指标 | C41: 服务对象满意度指标 | D41: 敬老院职工满意度 | E41: ≥95%
A44: 部门预算项目支出绩效目标表
D45: （2023年度）
A46: 项目名称 | D46: 共和乡2023年基本公共卫生服务经费
A47: 预算单位 | D47: 共和乡人民政府
A48: 项目资金(万元) | D48: 年度资金总额： | E48: 3.04
D49: 其中：财政拨款 | E49: 3.04
D50: 其他资金
A51: 总体目标 | B51: 年度目标
B52: 用于解决辖区内基本公共卫生突发情况
A53: 绩效指标 | B53: 一级指标 | C53: 二级指标 | D53: 三级指标 | E53: 指标值（包含数字及文字描述）
B54: 产出指标 | C54: 数量指标 | D54: 幅员面积 | E54: 231.15 平方公里
C56: 质量指标 | D56: 解决辖区内基本公共卫生突发情况 | E56: ≥95%
C57: 时效指标 | D57: 2023年 | E57: 1年
B58: 效益指标 | C58: 经济效益指标 | D58: 投入成本 | E58: 30425元
C59: 可持续发展指标
B60: 成本指标 | C60: 经济成本指标
C61: 社会成本指标 | D61: 促进社会稳定和谐 | E61: ≥95%
B62: 满意度指标 | C62: 服务对象满意度指标 | D62: 辖区群众满意度 | E62: ≥95%
E65: 表6
A66: 部门预算项目支出绩效目标表
D67: （2023年度）
A68: 项目名称 | D68: 共和乡2023年少数民族工作经费补助
A69: 预算单位 | D69: 共和乡人民政府
A70: 项目资金(万元) | D70: 年度资金总额： | E70: 0.59
D71: 其中：财政拨款 | E71: 0.59
D72: 其他资金
A73: 总体目标 | B73: 年度目标
B74: 主要用于少数民族乡地区突发性、敏感性及影响乡经济发展急需解决的特殊问题，少数民族重要纪念活动、少数民族重大节日、民族业务活动，改善困难少数民族基本条件，民族政法、文化、教育、宣传等工作，少数民族人才培养、培训，少数民族其他工作等。
A75: 绩效指标 | B75: 一级指标 | C75: 二级指标 | D75: 三级指标 | E75: 指标值（包含数字及文字描述）
B76: 产出指标 | C76: 数量指标 | D76: 少数民族人数 | E76: 1187 人
C78: 质量指标 | D78: 促进多民族和谐 | E78: ≥95%
C79: 时效指标 | D79: 2023年 | E79: 1年
B80: 效益指标 | C80: 经济效益指标 | D80: 投入成本 | E80: 5935元
C81: 可持续发展指标
B82: 成本指标 | C82: 经济成本指标
C83: 社会成本指标 | D83: 促进多民族和谐 | E83: ≥95%
B84: 满意度指标 | C84: 服务对象满意度指标 | D84: 少数民族满意度 | E84: ≥95%
E86: 表6
A87: 部门预算项目支出绩效目标表
D88: （2023年度）
A89: 项目名称 | D89: 共和乡2023年乡人大代表活动经费及人代会经费
A90: 预算单位 | D90: 共和乡人民政府
A91: 项目资金(万元) | D91: 年度资金总额： | E91: 3.32
D92: 其中：财政拨款 | E92: 3.32
D93: 其他资金
A94: 总体目标 | B94: 年度目标
B95: 用于人代活动支出，主要包括乡人代会，代表考察，村级代表小组活动人代活动。
A96: 绩效指标 | B96: 一级指标 | C96: 二级指标 | D96: 三级指标 | E96: 指标值（包含数字及文字描述）
B97: 产出指标 | C97: 数量指标 | D97: 乡级人大代表 | E97: 51 人
C99: 质量指标 | D99: 保障人代工作正常开展 | E99: ≥95%
C100: 时效指标 | D100: 2023年 | E100: 1年
B101: 效益指标 | C101: 经济效益指标 | D101: 投入成本 | E101: 33150元
C102: 可持续发展指标
B103: 成本指标 | C103: 经济成本指标
C104: 社会成本指标 | D104: 促进社会稳定和谐 | E104: ≥95%
B105: 满意度指标 | C105: 服务对象满意度指标 | D105: 人大代表满意度 | E105: ≥95%
E106: 表6
A107: 部门预算项目支出绩效目标表
D108: （2023年度）
A109: 项目名称 | D109: 共和乡2023年乡村治理补助
A110: 预算单位 | D110: 共和乡人民政府
A111: 项目资金(万元) | D111: 年度资金总额： | E111: 1.22
D112: 其中：财政拨款 | E112: 1.22
D113: 其他资金
A114: 总体目标 | B114: 年度目标
B115: 保障乡镇治理工作开支，构建依法治乡管理机制，全面提升乡镇管理质量。
A116: 绩效指标 | B116: 一级指标 | C116: 二级指标 | D116: 三级指标 | E116: 指标值（包含数字及文字描述）
B117: 产出指标 | C117: 数量指标 | D117: 常住人口数 | E117: 6085 人
C119: 质量指标 | D119: 提升乡镇管理质量 | E119: ≥95%
C120: 时效指标 | D120: 2023年 | E120: 1年
B121: 效益指标 | C121: 经济效益指标 | D121: 投入成本 | E121: 12170元
C122: 可持续发展指标
B123: 成本指标 | C123: 经济成本指标
C124: 社会成本指标 | D124: 促进社会稳定和谐 | E124: ≥95%
B125: 满意度指标 | C125: 服务对象满意度指标 | D125: 辖区群众满意度 | E125: ≥95%
E127: 表6
A128: 部门预算项目支出绩效目标表
D129: （2023年度）
A130: 项目名称 | D130: 根据行政事业股盐财资行【2022】515号提前下达敬老院管理人员公用经费
A131: 预算单位 | D131: 共和乡人民政府
A132: 项目资金(万元) | D132: 年度资金总额： | E132: 1.30
D133: 其中：财政拨款 | E133: 1.30
D134: 其他资金
A135: 总体目标 | B135: 年度目标
B136: 用于保障敬老院管理人员公用经费支出。
A137: 绩效指标 | B137: 一级指标 | C137: 二级指标 | D137: 三级指标 | E137: 指标值（包含数字及文字描述）
B138: 产出指标 | C138: 数量指标 | D138: 职工人数 | E138: 4 人
C140: 质量指标 | D140: 保障敬老院日常工作开展 | E140: ≥95%
C141: 时效指标 | D141: 2023年 | E141: 1年
B142: 效益指标 | C142: 经济效益指标 | D142: 投入成本 | E142: 13000元
C143: 可持续发展指标
B144: 成本指标 | C144: 经济成本指标
C145: 社会成本指标 | D145: 促进社会稳定和谐 | E145: ≥95%
B146: 满意度指标 | C146: 服务对象满意度指标 | D146: 敬老院管理人员满意度 | E146: ≥95%
E147: 表6
A148: 部门预算项目支出绩效目标表
D149: （2023年度）
A150: 项目名称 | D150: 共和乡2023年社工服务站经费
A151: 预算单位 | D151: 共和乡人民政府
A152: 项目资金(万元) | D152: 年度资金总额： | E152: 3.00
D153: 其中：财政拨款 | E153: 3.00
D154: 其他资金
A155: 总体目标 | B155: 年度目标
B156: 共和乡社会工作站的建立,有助于养老、助残、社会保障、社会救助等工作的高质量开展，提升辖区内群众社会化满意度。
A157: 绩效指标 | B157: 一级指标 | C157: 二级指标 | D157: 三级指标 | E157: 指标值（包含数字及文字描述）
B158: 产出指标 | C158: 数量指标 | D158: 打造个数 | E158: 1 个
C160: 质量指标 | D160: 有助于养老、助残、社会保障、社会救助等工作的高质量开展 | E160: ≥95%
C161: 时效指标 | D161: 2023年 | E161: 1年
B162: 效益指标 | C162: 经济效益指标 | D162: 投入成本 | E162: 30000元
C163: 可持续发展指标
B164: 成本指标 | C164: 经济成本指标
C165: 社会成本指标 | D165: 促进社会稳定和谐 | E165: ≥95%
B166: 满意度指标 | C166: 服务对象满意度指标 | D166: 辖区群众满意度 | E166: ≥95%
E168: 表6
A169: 部门预算项目支出绩效目标表
D170: （2023年度）
A171: 项目名称 | D171: 根据盐财资预【2023】5号下达2023年基层组织活动和公共服务运行经费（省县级）共和乡
A172: 预算单位 | D172: 共和乡人民政府
A173: 项目资金(万元) | D173: 年度资金总额： | E173: 79.00
D174: 其中：财政拨款 | E174: 79.00
D175: 其他资金
A176: 总体目标 | B176: 年度目标
B177: 在保障村级监制调整后的村级标准情况下，根据村幅员面积、人口数等因素，为更好的开展村级工作，增强基层组织凝聚力，鼓励基层创新活动，根据盐财资预【2023】5号关于下达2023年基层组织活动和公共服务运行经费79万元，其中省级58万元，县级21万元。
A178: 绩效指标 | B178: 一级指标 | C178: 二级指标 | D178: 三级指标 | E178: 指标值（包含数字及文字描述）
B179: 产出指标 | C179: 数量指标 | D179: 涉及村个数 | E179: 7 个
C181: 质量指标 | D181: 增强基层组织凝聚力，鼓励基层创新活动 | E181: ≥95%
C182: 时效指标 | D182: 2023年 | E182: 1年
B183: 效益指标 | C183: 经济效益指标 | D183: 投入成本 | E183: 790000元
C184: 可持续发展指标
B185: 成本指标 | C185: 经济成本指标
C186: 社会成本指标 | D186: 促进社会稳定和谐 | E186: ≥95%
B187: 满意度指标 | C187: 服务对象满意度指标 | D187: 辖区群众满意度 | E187: ≥95%
E188: 表6
A189: 部门预算项目支出绩效目标表
D190: （2023年度）
A191: 项目名称 | D191: 根据盐财资行〔2022〕363号关于下达2022年中央纪检监察转移支付资金
A192: 预算单位 | D192: 共和乡人民政府
A193: 项目资金(万元) | D193: 年度资金总额： | E193: 6,076.00
D194: 其中：财政拨款 | E194: 6,076.00
D195: 其他资金
A196: 总体目标 | B196: 年度目标
B197: 根据盐财资行〔2022〕363号《关于下达2022年中央纪检监察转移支付资金的通知》，下达我乡2022年中央纪检监察转移支付资金2.6万元，专项用于我乡纪检专项工作顺利开展。
A198: 绩效指标 | B198: 一级指标 | C198: 二级指标 | D198: 三级指标 | E198: 指标值（包含数字及文字描述）
B199: 产出指标 | C199: 数量指标 | D199: 纪检人员数量 | E199: 5人
C201: 质量指标 | D201: 保障纪检工作顺利开展 | E201: ≥95%
C202: 时效指标 | D202: 2023年 | E202: 1年
B203: 效益指标 | C203: 经济效益指标 | D203: 投入成本 | E203: 6076元
C204: 可持续发展指标
B205: 成本指标 | C205: 经济成本指标
C206: 社会成本指标 | D206: 纪检工作顺利完成 | E206: ≥95%
B207: 满意度指标 | C207: 服务对象满意度指标 | D207: 纪检人员工作经费得到保障 | E207: ≥95%
E209: 表6
A210: 部门预算项目支出绩效目标表
D211: （2023年度）
A212: 项目名称 | D212: 根据盐财资行【2022】508号关于下达乡镇便民服务中心“三化”建设经费（共和乡）
A213: 预算单位 | D213: 共和乡人民政府
A214: 项目资金(万元) | D214: 年度资金总额： | E214: 5.00
D215: 其中：财政拨款 | E215: 5.00
D216: 其他资金
A217: 总体目标 | B217: 年度目标
B218: 根据盐财资行【2022】508号关于下达乡镇便民服务中心“三化”建设经费下达给共和乡5万元。
A219: 绩效指标 | B219: 一级指标 | C219: 二级指标 | D219: 三级指标 | E219: 指标值（包含数字及文字描述）
B220: 产出指标 | C220: 数量指标 | D220: 涉及村数量 | E220: 7人
... 64 more rows

Sheet 7部门整体支出绩效目标表
H1: 表7
A2: 部门整体支出绩效目标表
A3: （2023年度）
A4: 部门名称 | D4: 盐边县共和乡人民政府..
A5: 年度主要任务 | B5: 任务名称 | D5: 主要内容
B6: 2023年部门预算编制 | D6: 严格执行相关政策，保障全年工资发放，机关办公运转等，预算编制科学合理，减少结余资金。
B7: 全乡经济社会发展的主要预期目标 | D7: 地区生产总值保底增长7.5%，努力实现8%；农业总产值增长8%，努力实现9%；农民人均可支配收入增长8%，努力实现8.5%。
B8: 坚持共同富裕惠民生，倾力推动补齐民生事业短板 | D8: 坚持“以人民为中心”的发展理念，抢抓攀枝花建设共同富裕试验区机遇，全面聚焦民生短板弱项补差，做大经济总量、做细收入分配、缩小贫富差距。
B10: 年度部门整体支出预算 | F10: 资金总额 | G10: 财政拨款 | H10: 其他资金
F11: 1,346.46 | G11: 1,346.46
A12: 年度总体目标 | B12: 严格执行相关政策，保障全年工资发放，机关办公运转等，预算编制科学合理，减少结余资金。
A13: 年度绩效指标 | B13: 一级指标 | C13: 二级指标 | E13: 三级指标 | G13: 指标值 （包含数字及文字描述）
B14: 产出指标 | C14: 数量指标 | E14: 基本支出 | G14: 1124.32万元
E15: 项目支出 | G15: 222.14万元
C16: 质量指标 | E16: 运行保障率 | G16: ≥100%
E17: 持续推进经济文化建设 | G17: ≥98%
C18: 时效指标 | E18: 本年度 | G18: 2023年度
E19: 年度 | G19: ≥1年
C20: 成本指标 | E20: 基本支出 | G20: 1124.32万元
E21: 项目支出 | G21: 222.14万元
B22: 效益指标 | C22: 经济效益指标 | E22: 发放（缴纳）率 | G22: 100%
C23: 社会效益指标 | E23: 足额保障（参保）率 | G23: 100%
C24: 生态效益指标 | E24: 社会可持续发展 | G24: 100%
C25: 可持续影响指标 | E25: 运行保障率 | G25: 100%
B26: 满意度指标 | C26: 服务对象满意度指标 | E26: 基层治理能力持续提升 | G26: 100%

Sheet Sheet1
